Cogmind - Beta 17 @@@ ROGUE MODE // 2026.06.22 @ 19:52:49 Player: bugsniper Result: Destroyed by JC-YMO(R) with Subdweller Beam Cannon Performance ------------- Evolutions (0) 0 Regions Visited (2) 400 Robots Destroyed (47) 235 Value Destroyed (1000) 1000 Prototype IDs (2) 40 Alien Tech Used (0) 0 Bonus (0) 0 TOTAL SCORE: 1675 Bonus ------- None Cogmind --------- Core Integrity 0/250 Matter 260/300 Energy 89/125 System Corruption 0% Temperature Cool (9) Movement Treading (160) Location -10/Subcaves Parts ------- > --- POWER (1) -------- Light Ion Engine > --- PROPULSION (2) --- Improved Treads Improved Treads > --- UTILITY (2) ------ Large Storage Unit Subdweller Optics > --- WEAPON (2) ------- Grenade Launcher Grenade Launcher > --- INVENTORY (15) --- Improved Ion Engine Subdweller Power Source Light Treads Improved Treads Improved Treads Subdweller Monowheel Heat Sink Disposable Heat Sink Large Storage Unit Beam Rifle Beam Rifle Beam Cannon Subdweller Beam Cannon Light Cannon Scrap Shield Fragment (41) Peak State ------------ > --- POWER ------------ Light Ion Engine > --- PROPULSION ------- Improved Treads Improved Treads > --- UTILITY ---------- Large Storage Unit Subdweller Optics > --- WEAPON ----------- Beam Rifle Grenade Launcher > --- INVENTORY -------- Subdweller Power Source Improved Treads Improved Treads Subdweller Monowheel Heat Sink Disposable Heat Sink Large Storage Unit Beam Rifle Beam Cannon Subdweller Beam Cannon Light Cannon Grenade Launcher Scrap Shield Fragment [Rating: 13] Favorites ----------- Power Ion Engine Engine Ion Engine Propulsion Light Treads Treads Light Treads Leg Aluminum Leg Utility Heat Sink Device Heat Sink Storage Large Storage Unit Weapon Beam Rifle Energy Gun Beam Rifle Energy Cannon Beam Cannon Ballistic Gun Assault Rifle Launcher Grenade Launcher Build | -11 -10 -10 ------- Run | Yrd Mat Sub Slots Evolved . | . . . Power . | . . . Propulsion . | . . . Utility . | . . . Weapon . | . . . Parts Attached 23 | . 17 6 Power 1 | . . 1 Engine 1 | . . 1 Core . | . . . Reactor . | . . . Propulsion 6 | . 6 . Treads 6 | . 6 . Leg . | . . . Wheel . | . . . Hover . | . . . Flight . | . . . Utility 5 | . 4 1 Device 3 | . 2 1 Storage 2 | . 2 . Processor . | . . . Hackware . | . . . Protection . | . . . Artifact . | . . . Weapon 11 | . 7 4 Energy Gun 6 | . 4 2 Energy Cannon 1 | . . 1 Ballistic Gun 2 | . 2 . Ballistic Cannon . | . . . Launcher 2 | . 1 1 Special Weapon . | . . . Impact Weapon . | . . . Slashing Weapon . | . . . Piercing Weapon . | . . . Special Melee Weapon . | . . . Unidentified Prototypes . | . . . Parts Lost 4 | . 1 3 Power 1 | . . 1 Propulsion . | . . . Utility 1 | . . 1 Weapon 2 | . 1 1 Highest Loss Streak 3 | . 1 3 To Critical Strikes . | . . . Average Backups 10 | 6 9 14 Power 1 | 1 . 1 Propulsion 4 | 4 3 4 Utility 1 | . . 2 Weapon 3 | 1 3 4 Tool/Special . | . . . Unused Backups 9 | . . 9 Power 3 | . . 3 Propulsion 2 | . . 2 Utility 2 | . . 2 Weapon 2 | . . 2 Tool/Special . | . . . Average Slot Usage (%) 99 | . 99 99 Engine 13 | . 14 13 Treads 26 | . 25 28 Leg 1 | . 2 . Device 11 | . 9 13 Storage 15 | . 17 14 Energy Gun 18 | . 22 15 Ballistic Gun 2 | . 5 . Launcher 5 | . . 10 Peak Build Rating 13 | 6 12 13 Average Rating 9 | 6 9 10 On Entrance 7 | 6 6 10 Avg Prop Armor Cover (%) . | . . . Naked Turns . | . . . Heaviest Build 32 | 13 32 32 Greatest Support 46 | 20 46 46 Greatest Overweight (x) 1 | . 1 . Average Overweight (x) . | . . . Largest Inventory Capacity 15 | 8 15 15 Average Capacity 12 | 8 12 15 Most Carried 15 | 6 12 15 Average Carried 10 | 6 9 14 Final Capacity 15 | 8 15 15 Final Carried 15 | 6 12 15 Class Distribution -------------------- 100% | Mutant Dominant Class ---------------- Mutant | -10/Materials Mutant | -10/Subcaves Resources | -11 -10 -10 ----------- Run | Yrd Mat Sub Matter Collected 1028 | 200 503 325 Remotely . | . . . Salvage Created 1031 | . 760 271 Parts 75 | . 44 31 Haulers Intercepted . | . . . Recyclers Shooed 1 | . 1 . Parts Field Recycled . | . . . Retrieved Matter . | . . . Parts Self-Destructed 16 | . . 16 Prevented . | . . . Parts Restored . | . . . Kills | -11 -10 -10 ------- Run | Yrd Mat Sub Combat Hostiles Destroyed 32 | . 19 13 Guns 12 | . 10 2 Cannons 1 | . . 1 AOE 19 | . 9 10 Classes Destroyed 11 | . 8 3 Worker 3 | . 3 . Builder 3 | . 3 . Tunneler 1 | . 1 . Recycler 4 | . 4 . Operator 1 | . 1 . Turret 1 | . . 1 Watcher 2 | . 2 . Swarmer 13 | . 8 5 Grunt 13 | . 11 2 Sentry 1 | . . 1 Subdweller 5 | . . 5 Best Kill Streak 11 | . 11 3 Combat Bots Only 4 | . 4 3 Max Kills in Single Turn 2 | . 2 2 Gunslinging . | . . . Exploded 2 | . 2 2 Melee . | . . . Uniques/NPCs Destroyed . | . . . Combat | -11 -10 -10 -------- Run | Yrd Mat Sub Hostile Shots Fired 123 | 2 67 54 Missed 42 | . 23 19 Hits 81 | 2 44 35 Projectile 81 | 2 44 35 AOE 3 | 2 . 1 Critical Strikes 2 | . 2 . Damage Taken 1214 | 66 538 610 Core 255 | 19 77 159 Absorbed by Shields . | . . . Core Remaining (%) 92 | 92 . . Volleys Fired 95 | . 67 28 Largest 2 | . 2 2 Hottest 116 | . 112 116 Shots Fired 155 | . 118 37 Gun 112 | . 101 11 Cannon 5 | . . 5 Launcher 38 | . 17 21 Special . | . . . Kinetic 50 | . 50 . Thermal 65 | . 51 14 Explosive 38 | . 17 21 Electromagnetic 2 | . . 2 Robot Hit Streak 9 | . 9 9 Robot Miss Streak 3 | . 3 2 Penetration Max . | . . . Secondary Targets 2 | . 2 . Max Gunslinging Chain 1 | . 1 . Shots Hit Robots 88 | . 74 14 Core Hits 81 | . 54 27 Critical Kills . | . . . Critical Parts Destroyed . | . . . Critical Strikes 8 | . 7 1 Burn 8 | . 7 1 Melee Attacks . | . . . Impact . | . . . Slashing . | . . . Piercing . | . . . Sneak Attacks . | . . . Combat Hostiles . | . . . Follow-up Attacks . | . . . Damage Inflicted 2873 | . 1971 902 Guns 918 | . 815 103 Cannons 53 | . . 53 Explosions 1897 | . 1151 746 Melee . | . . . Ramming 5 | . 5 . Kinetic 387 | . 387 . Thermal 567 | . 428 139 Explosive 1897 | . 1151 746 Electromagnetic 17 | . . 17 Impact . | . . . Slashing . | . . . Piercing . | . . . Highest Corruption . | . . . Average Corruption . | . . . Corruption Purged . | . . . Corruption Blocked . | . . . Overload Shots . | . . . Overflow Damage 13 | . . 13 Projectiles . | . . . Explosions 13 | . . 13 Melee . | . . . Knockbacks 1 | . 1 . Impact 1 | . 1 . Kinetic . | . . . Secondary . | . . . Self-Inflicted Damage 239 | . 89 150 Shots 8 | . 3 5 Rammed 1 | . 1 . Targets Rammed 2 | . 2 . Kicked 1 | . 1 . Crushed . | . . . Highest Temperature 102 | . 102 9 Average Temperature 33 | . 34 7 Received Heat Transfer 342 | . 204 138 Siege Activations . | . . . Martial Activations . | . . . Shielding Activations . | . . . Robots Disrupted . | . . . Combat Hostiles . | . . . Robots Corrupted . | . . . Combat Hostiles . | . . . Parts Fried . | . . . Impact Corruptions . | . . . Robots Melted . | . . . Combat Hostiles . | . . . Parts Melted 5 | . 5 . Heat Transferred 2023 | . 1616 407 Parts Sabotaged . | . . . Parts Stolen . | . . . Parts Stripped . | . . . Power Chain Reactions . | . . . Alert | -11 -10 -10 ------- Run | Yrd Mat Sub Maximum Alert Level 1 | . 1 . Low Security (%) 97 | 100 95 . Level 1 2 | . 4 . Level 2 . | . . . Level 3 . | . . . Level 4 . | . . . Level 5 . | . . . High Security . | . . . Max Security . | . . . Peak Influence 214 | . 214 . Initial . | . . . Average 57 | . 89 . Influence Increases 1000 | . 665 335 Destroy 0b10 Robot/C 560 | . 380 180 Destroy 0b10 Robot/NC 70 | . 70 . Destroy Leader 84 | . 64 20 Successful Hack 12 | . 12 . Disable Machine 45 | . 45 . Destroy Structure 49 | . 49 . Lose Combat Pursuer 180 | . 45 135 Influence Decreases 855 | . 496 359 Entered New Map 82 | . . 82 Time Decay 733 | . 486 247 Lost Part 40 | . 10 30 Squads Dispatched 4 | . 4 . Investigation 1 | . 1 . Extermination . | . . . Reinforcement 3 | . 3 . Assault . | . . . Garrison . | . . . Intercept . | . . . Searches Triggered . | . . . Construction Impeded . | . . . Haulers Reinforced . | . . . Active Scanning Responses . | . . . Cargo Convoy Interrupts . | . . . Stealth | -11 -10 -10 --------- Run | Yrd Mat Sub Distress Signals 3 | . 3 . Communications Jammed . | . . . Distress Signals . | . . . Times Spotted 55 | 2 34 19 Peak Tracking Total 5 | 2 5 4 Tactical Retreats 5 | . 3 2 Traps | -11 -10 -10 ------- Run | Yrd Mat Sub Traps Triggered 1 | . 1 . Indirectly . | . . . Trap Hack Attempts . | . . . Triggered . | . . . Disarmed . | . . . Reprogrammed . | . . . Reused . | . . . Traps Extracted . | . . . Installed . | . . . Triggered . | . . . Machines | -11 -10 -10 ---------- Run | Yrd Mat Sub Machines Disabled 6 | . 3 3 Max in Single Turn 2 | . 2 2 Machines Repaired . | . . . Machines Dismantled . | . . . Machines Sabotaged . | . . . Overloaded Fab Kills . | . . . Hacking | -11 -10 -10 --------- Run | Yrd Mat Sub Machines Accessed 5 | . 5 . Terminals 4 | . 4 . Fabricators . | . . . Repair Stations 1 | . 1 . Recycling Units . | . . . Scanalyzers . | . . . Garrison Access . | . . . Total Hacks 10 | . 10 . Successful 3 | . 3 . Failed 7 | . 7 . Catastrophic . | . . . Database Lockouts . | . . . Manual 5 | . 5 . Terminals 8 | . 8 . Fabricators . | . . . Repair Stations 2 | . 2 . Recycling Units . | . . . Scanalyzers . | . . . Garrison Access . | . . . Terminal Hacks 2 | . 2 . Prototype ID Bank 1 | . 1 . Maintenance Status 1 | . 1 . Fabricator Hacks . | . . . Repair Station Hacks . | . . . Recycling Unit Hacks . | . . . Scanalyzer . | . . . Garrison Access Hacks . | . . . Unauthorized Hacks 1 | . 1 . Terminals . | . . . Fabricators . | . . . Repair Stations 1 | . 1 . Mechanics 1 | . 1 . Recycling Units . | . . . Scanalyzers . | . . . Garrison Access . | . . . Data Cores Recovered . | . . . Used . | . . . Hacking Detections 4 | . 4 . Full Trace Events 1 | . 1 . Feedback Events . | . . . Feedback Blocked . | . . . Robot Schematics Acquired . | . . . Robots Built . | . . . Authchips . | . . . Time . | . . . Total Robot Build Rating . | . . . Part Schematics Acquired . | . . . Parts Built . | . . . Authchips . | . . . Time . | . . . Total Part Build Rating . | . . . Part Studies Acquired . | . . . Parts Repaired . | . . . Time . | . . . Parts Recycled . | . . . Recycled Matter . | . . . Retrieved Matter . | . . . Retrieved Components . | . . . Parts Scanalyzed . | . . . Part Schematics Acquired . | . . . Parts Damaged . | . . . Bothacking | -11 -10 -10 ------------ Run | Yrd Mat Sub Used RIF Installer . | . . . Robots Hacked . | . . . Non-combat . | . . . Combat . | . . . Robot Hacks Applied . | . . . Relay Couplers Released . | . . . Fabnet Peak Effective % . | . . . Robots Rewired . | . . . Allies Hacked . | . . . Hacks Repelled . | . . . Allies | -11 -10 -10 -------- Run | Yrd Mat Sub Total Allies . | . . . Largest Group . | . . . Highest-Rated Group . | . . . Highest-Rated Ally . | . . . Total Orders . | . . . Ally Attacks . | . . . Total Damage . | . . . Kills . | . . . Allies Corrupted . | . . . Allies Melted . | . . . Intel | -11 -10 -10 ------- Run | Yrd Mat Sub Active Infowar (turns) 168 | . . 168 Optics 168 | . . 168 Robot Analysis Total . | . . . Derelict Logs Recovered . | . . . Drone Launches . | . . . Drone Recoveries . | . . . Exploration | -11 -10 -10 ------------- Run | Yrd Mat Sub Turns Passed 4330 | 978 1768 1584 Spaces Moved 1893 | 107 873 913 Core . | . . . Treads 1731 | . 818 913 Legs 162 | 107 55 . Wheels . | . . . Hover . | . . . Flight . | . . . Fastest Speed 120 | 120 120 160 Average Speed 157 | 120 159 160 Slowest Speed 190 | 120 190 160 Overloaded Moves . | . . . Propulsion Burnouts . | . . . Robots Hopped . | . . . Potential Cave-ins . | . . . Cave-ins Triggered . | . . . Exploration Rate (%) 52 | 9 98 51 Regions Visited 2 Branch Regions 1 Pre-discovered Areas . | . . . Known Exits Taken . | . . . Unknown Exits Taken 2 | 1 1 . Scrap Searched . | . . . Spaces Dug 5 | . . 5 Terrain Destroyed 141 | . 47 94 Melee . | . . . Projectile . | . . . AOE 141 | . 47 94 Terrain Rammed . | . . . Walls Destroyed . | . . . Machines Disabled . | . . . Actions | -11 -10 -10 --------- Run | Yrd Mat Sub Total 3080 | 956 1126 998 Wait 1016 | 850 140 26 Move 1891 | 106 872 913 Hop . | . . . Pick Up 20 | . 11 9 Fast Attach 5 | . 3 2 Attach 6 | . 3 3 Detach . | . . . Swap 30 | . 18 12 Drop 15 | . 10 5 Fire 95 | . 67 28 Melee . | . . . Ram . | . . . Kick 1 | . 1 . Crush 1 | . 1 . Escape Stasis . | . . . Rewire . | . . . Trap . | . . . Miscellaneous . | . . . Route ------- -11/Scrapyard -10/Materials (discovered 5 exits: [*Mat x3] / [*Min] / [*Sub]) -10/Subcaves (discovered 3 exits: [*Mat] / [*Rec] / [*Scr]) History --------- Turn | Location | Event 1 | -11/Scrapyard | Discovered new exit (range 1) 979 | -11/Scrapyard | Assembled infested the area 979 | -11/Scrapyard | Entered Materials 980 | -10/Materials | Build established: Mutant 1288 | -10/Materials | Discovered new exit (range 13) 1330 | -10/Materials | Discovered new exit (range 12) 1864 | -10/Materials | Discovered new exit (range 13) 2367 | -10/Materials | Discovered new exit (range 9) 2720 | -10/Materials | Discovered new exit (range 9) 2747 | -10/Materials | Entered Subcaves 2748 | -10/Subcaves | Approached by a straggling Scientist 2956 | -10/Subcaves | Scientist uncovered a shortcut to Scraptown 2985 | -10/Subcaves | Shifting Twisted Machinery released Sub. Power Source 3699 | -10/Subcaves | Shifting Twisted Machinery released Piercing Trap 4016 | -10/Subcaves | Shifting Twisted Machinery released Riot Gun 4020 | -10/Subcaves | Shifting Twisted Machinery released Sub. Laser 4030 | -10/Subcaves | Discovered new exit (range 9) 4032 | -10/Subcaves | Core integrity fell below 50% 4112 | -10/Subcaves | Discovered new exit (range 9) 4159 | -10/Subcaves | Lost 3 parts (1p1u1w) 4327 | -10/Subcaves | A Subdweller sparked back to life 4327 | -10/Subcaves | A Subdweller sparked back to life 4327 | -10/Subcaves | A Subdweller sparked back to life 4330 | -10/Subcaves | Core integrity fell below 20% 4331 | -10/Subcaves | Destroyed by JC-YMO(R) with Subdweller Beam Cannon Last Messages --------------- 04163_ Acquired Sub. Optics. 04166_ Subatomizers dissect the Sub. Monowheel. 04211_ Y-45 Defender destroyed. 04214_ Acquired 58 matter. 04217_ Heat Sink fries itself beyond repair. 04218_ Hvy. Assault Rifle fries itself beyond repair. 04222_ Heat Sink fries itself beyond repair. 04222_ Acquired Lgt. Treads. 04224_ Acquired Imp. Ion Engine. 04232_ Acquired 6 matter. 04267_ Acquired 13 matter. 04275_ Acquired 12 matter. 04327_ 5Q-OSA(R) creaks and sparks as it begins to move. 04327_ WG-BBP(R) creaks and sparks as it begins to move. 04327_ JC-YMO(R) creaks and sparks as it begins to move. 04331_ 5Q-OSA(R) destroyed. Map ----- +----------------------------------------------------+ | ?????????????????????????????????????????????????? | | ?????????????????????????????????????????????????? | | ?????????????????????????????????????????????????? | | ?????????????????????????????? ??????????????????? | | ?????????????????????????????? ?????##???????????? | | ?????????????????????????????? ????# ???????????? | | ?????????????????????????????? ????# ??? ?????? | | ??????????????????????????????# ????# ?## ?????? | | ??????????????????????????##### ????# ## ?????? | | ??????????????????????????# ????? ?????? | | ??????????????????????????? ##???# ?????? | | ??????????????????????????# ##?## ??????? | | ?????????????????????????? ### ??????? | | ??????????????????????????# ??????? | | ?????????????????????????????# ??????? | | ???????????????????????????### ??????? | | ?????????????????????????### # ####??? | | ?????????????????????????# ????# #?## | | ?????????????????????????## #######?# #?# | | ?????????????????????##### ## # ## ### ##?# | | ?????????????????????# ## ## ### | | ?????????????????????# # | | ?????????????????????# ### # | | ?????????????????????# < ! <&## # #?#% ## | | ????????????????????## R%&R ##### #?# ### | | ????????????????????# @ < #???##### ####?# | | ??????????? ##???????# #????# | | ?????? ## # ### #???????## ##????## | | ???????????????### ?#???######????????#####??????? | | ?????????????????#???????????????????????????????? | | ?????????????????????????????????????????????????? | | ?????????????????????????????????????????????????? | | ?????????????????????????????????????????????????? | | ?????????????????????????????????????????????????? | | ?????????????????????????????????????????????????? | | ?????????????????????????????????????????????????? | | ?????????????????????????????????????????????????? | | ?????????????????????????????????????????????????? | | ?????????????????????????????????????????????????? | | ?????????????????????????????????????????????????? | | ?????????????????????????????????????????????????? | | ?????????????????????????????????????????????????? | | ?????????????????????????????????????????????????? | | ?????????????????????????????????????????????????? | | | | | | | | | | | | | +----------------------------------------------------+ Best States ------------- Heat Dissipation 35 Energy Generation 10 Energy Capacity 250 Matter Stores 300 Matter Capacity 300 Sight Range 21 Terrain Scan Density 10 Evasion (%) 55 Recoil Reduction 2 Item Schematics ----------------- None Robot Schematics ------------------ None Fabricated ------------ Nothing Repaired ---------- Nothing Studied --------- None Alien Tech Used ----------------- None Achievements -------------- Nice Directions, Buddy Challenges ------------ None Game ------ Seed FlyingPoweredLegs Manual? 0 Play Time 00:24:58 Cumulative 454.1 hours Start 2026.06.22 @ 19:31:32 End 2026.06.22 @ 19:52:49 Sessions 1 Manual Loads 0 Difficulty Rogue Special Mode None Game No. 262 Rogue 260 Adventurer 2 Explorer 0 Win Type - Total 11 Types 10/0/1/0/0/0/0/0/0/0 Lore% 77 Gallery% 64 Achievement% 35 Wizard Run 0 Options --------- Layout 1 ASCII 0 Keyboard 0 Movement Numpad Keybinds 0 Fullscreen 1 Font 24/Smallcaps Map View 50x35 Zoom Use 0% Tactical HUD 1 Map Filters NONE Filters NONE Steam 1 RUN: 399070df-04ce-4007-b15c-b25a899a8463